[Event "CCT Chesscom Classic-D2 2024"]
[Site "Online"]
[Date "2024.05.12"]
[Round "52"]
[White "Hakobyan, Aram"]
[Black "Sevian, Samuel"]
[Result "0-1"]
[ECO "C83"]
[WhiteElo "2617"]
[BlackElo "2699"]
[Annotator "TA"]
[PlyCount "88"]
[EventDate "2024.05.08"]
[EventType "k.o."]
[EventCountry "NET"]
[SourceTitle "playchess.com"]
[Source "ChessBase"]
[SourceQuality "1"]
[TimeControl "600+2"]

{[%evp 23,88,20,7,0,2,9,21,10,6,0,0,0,0,0,12,0,0,0,0,0,0,-145,-156,-164,-50,-294,-222,-208,-153,-153,-112,-128,-133,-122,-119,-345,-373,-572,-556,-587,-555,-677,-689,-616,-431,-1283,-1507,-1268,-1203,-29987,-29988,-29988,-668,-637,-658,-2078,-2394,-4133,-2231,-5257,-5108,-4133,-2866,-1802,-1277,-29989,-29990]} 1. e4 {[%emt 0:00:03]} e5 {[%emt 0:00:09]} 2. Nf3 {[%emt 0:00:02]} Nc6 {[%emt 0:00:00]} 3. Bb5 {[%emt 0:00:01]} a6 {[%emt 0:00:01]} 4. Ba4 {[%emt 0:00:01]} Nf6 {[%emt 0:00:01]} 5. O-O {[%emt 0:00:00]} Nxe4 {[%emt 0:00:00]} 6. d4 {[%emt 0:00:04]} b5 {[%emt 0:00:01]} 7. Bb3 {[%emt 0:00:00]} d5 {[%emt 0:00:00]} 8. dxe5 {[%emt 0:00:01]} Be6 {[%emt 0:00:01]} 9. Nbd2 {[%emt 0:00:01]} Be7 {[%emt 0:00:01]} 10. c3 {[%emt 0:00:06]} O-O {[%emt 0:00:02]} 11. Bc2 {[%emt 0:00:12]} f5 {[%emt 0:00:01]} 12. exf6 {[%emt 0:00:05]} Nxf6 {[%emt 0:00:01]} 13. Re1 {[%emt 0:00:01]} Bg4 {[%emt 0:00:01]} 14. h3 {[%emt 0:00:03]} Bh5 {[%emt 0:00:01]} 15. Nf1 {[%emt 0:00:01][%cal Bd2f1,Bf1g3,Bg3f5][%mdl 32] The position is equal.} Bc5 $1 {[%emt 0:00:07]} 16. Ng3 {[%emt 0:00:04] Prevents Ne4.} (16. Be3 {simplifies} d4 17. Bg5 dxc3 18. bxc3 Qxd1 19. Raxd1 Bxf3 20. gxf3 h6 21. Bh4) 16... Bxf3 {[%emt 0:00:02]} 17. gxf3 {[%emt 0:00:00]} (17. Qxf3 $2 Ne4 18. Nxe4 Rxf3 19. Nxc5 Rf8 $19) 17... Qd6 {[%emt 0:00:09]} 18. Kg2 {[%emt 0:00:06]} Rad8 {[%emt 0:00:01]} 19. b4 {[%emt 0:00:49][%cal Og3f5] Hoping for Nf5!} Bb6 {[%emt 0:00:02]} 20. Bg5 {[%emt 0:00:02]} h6 {[%emt 0:00:02]} 21. Nf5 {[%emt 0:01:50]} Qd7 {[%emt 0:00:02]} 22. Bh4 {[%emt 0:00:07] [#]} (22. Bxf6 $11 {remains equal.} Rxf6 23. Qd3) 22... Nh5 $1 $17 {[%emt 0:00:01]} 23. Qb1 {[%emt 0:03:50]} (23. Bxd8 $2 Nf4+ 24. Kf1 Rxf5 $19) 23... Rde8 {[%emt 0:01:49]} (23... Nf4+ 24. Kh1 g5 25. Rg1) (23... d4 $19 24. Bg3 (24. Bxd8 $2 d3 $19) 24... d3 (24... dxc3 25. Bb3+ Kh8 26. Nh4 $16) 25. Bb3+ Kh8) 24. Rxe8 $2 {[%emt 0:00:02]} (24. Bg3 $1 $15) 24... Rxe8 {[%emt 0:01:21]} 25. Kh1 {[%emt 0:00:34]} Rf8 {[%emt 0:01:55] aiming for ...Kh8.} 26. a4 {[%emt 0:00:12]} Kh8 {[%emt 0:01:34] Black is more active.} 27. axb5 {[%emt 0:00:05]} axb5 {[%emt 0:00:00]} 28. Qg1 {[%emt 0:01:12] [#]} Ne5 $36 {[%emt 0:00:38][%cal Oh5f4][%mdl 2048] Inhibits Qg6. White is under strong pressure.} (28... Rxf5 $2 29. Qg6 Nf4 30. Ra8+ $18 (30. Qxf5 Qxf5 31. Ra8+ Kh7 $18) (30. Bxf5 Nxg6 31. Bxd7 Nxh4 $18) (30. Qxf5 Qxf5 31. Ra8+ Kh7 $18) (30. Bxf5 Nxg6 31. Bxd7 Nxh4 $18)) 29. f4 $2 {[%emt 0:00:22]} Nxf4 $19 {[%emt 0:00:17]} 30. Bg3 {[%emt 0:00:17]} (30. Qg3 {is a better defense.} g5 (30... Rxf5 $2 31. Qxf4 g5 32. Bxf5 $18) 31. Bxg5 hxg5 32. Qxg5) 30... Ned3 {[%emt 0:00:17]} (30... Rxf5 $2 31. Ra8+ (31. Bxf4 Rf8 $17) 31... Kh7 32. Bxf4 $18) (30... Nxh3 31. Qg2 Nxf2+ (31... Rxf5 $2 32. Ra8+ Kh7 33. Qxh3 $18) 32. Bxf2 $16) 31. Bxf4 {[%emt 0:00:06]} Qxf5 {[%emt 0:00:40]} (31... Nxf4 32. Qg4 g5 33. Re1 Bxf2 34. Rf1 $19) 32. Bxd3 {[%emt 0:00:31]} Qxd3 {[%emt 0:00:25]} ({Less strong is} 32... Qxf4 33. Qg6 Qf3+ (33... Bxf2 34. Qh7#) 34. Kh2 Qxf2+ (34... Bxf2 35. Qh7#) 35. Kh1 Qf3+ 36. Kh2 Qf4+ 37. Kg2 Qf3+ (37... Qf2+ 38. Kh1 $11) 38. Kh2 Qf4+ 39. Kh1 $11) 33. Bg3 {[%emt 0:00:10]} Qxc3 {[%emt 0:00:03][%cal Ob6f2] Threatens to win with ...Bxf2!} 34. Qd1 {[%emt 0:00:07]} (34. Qe1 $142 Qf3+ 35. Kh2) 34... Bxf2 {[%emt 0:00:19]} 35. Bh2 {[%emt 0:00:00]} Bb6 {[%emt 0:00:12] ( -> ...Rf2)} 36. Rc1 {[%emt 0:00:01]} Qxh3 {[%emt 0:00:03]} 37. Qe2 {[%emt 0:00:03]} Qf3+ {[%emt 0:00:02]} (37... Rf2 $142 38. Qxf2 Bxf2 39. Rg1 Qf3+ (39... Bxg1 {leads to mate.} 40. Kxg1 Qe3+ 41. Kg2 d4 42. Bxc7 d3 43. Bb6 Qe2+ 44. Kh3 d2 45. Bd4 d1=Q 46. Bxg7+ Kxg7 47. Kg3 Qg4+ 48. Kh2 Qdg1#) 40. Rg2 d4 (40... Qd1+ $2 41. Bg1 $19) 41. Bg1 d3 42. Bxf2 d2 43. Kh2 Qh5+ (43... d1=R 44. Bh4 Qh5 45. Kh3 Rd4 46. Rxg7 Kxg7 47. Kg3 Qg4+ 48. Kf2 Rd2+ 49. Ke3 Re2+ 50. Kd3 Qc4#) 44. Kg3 d1=Q 45. Rh2 Qhg4#) 38. Qxf3 {[%emt 0:00:01]} Rxf3 {[%emt 0:00:01]} 39. Bxc7 {[%emt 0:00:04]} Bxc7 {[%emt 0:00:00]} 40. Rxc7 {[%emt 0:00:01] KR-KR} Rf4 {[%emt 0:00:01]} 41. Rb7 {[%emt 0:00:01]} Rxb4 {[%emt 0:00:01]} 42. Kg2 {[%emt 0:00:00]} Rb3 {[%emt 0:00:00]} 43. Kf2 {[%emt 0:00:01]} Kh7 {[%emt 0:00:01]} 44. Rxb5 {[%emt 0:00:01]} Rxb5 {[%emt 0:00:01] Weighted Error Value: White=1.02/Black=0.52.  Loses game:     	White=2     	---        Mistake:       	White=2     	Black=1      OK:         	White=9     	Black=8      Best:        	White=1     	Black=2      Strong:       	---       	Black=2} 0-1

[Event "CCT Chesscom Classic-D2 2024"]
[Site "Online"]
[Date "2024.05.12"]
[Round "52"]
[White "Martinez Alcantara, Jose Eduardo"]
[Black "Vidit, Santosh Gujrathi"]
[Result "0-1"]
[ECO "C28"]
[WhiteElo "2612"]
[BlackElo "2722"]
[Annotator "TA"]
[PlyCount "98"]
[EventDate "2024.05.08"]
[EventType "k.o."]
[EventCountry "NET"]
[SourceTitle "playchess.com"]
[Source "ChessBase"]
[SourceQuality "1"]
[TimeControl "600+2"]

{[%evp 15,98,0,0,-9,0,-71,-31,-37,-26,-36,-41,-75,-64,-98,-90,-88,-87,-178,-165,-176,-165,-203,-191,-245,-255,-252,-239,-332,-261,-293,-156,-150,-134,-139,-143,-146,-160,-154,-143,-148,-150,-147,-129,-160,-142,-127,-110,-110,-110,-164,-169,-176,-164,-176,-160,-158,-156,-282,-291,-250,0,-205,-239,-205,-226,-186,-185,-1060,-1052,-970,-771,-1690,-1870,-29972,-29965,-29986,-29987,-29990,-898,-1220,-1053,-29969,-29970,-29987,-29988]} 1. e4 {[%emt 0:00:03]} e5 {[%emt 0:00:04]} 2. Bc4 {[%emt 0:00:02]} Nf6 {[%emt 0:00:01]} 3. d3 {[%emt 0:00:01]} Nc6 {[%emt 0:00:02]} 4. Nc3 {[%emt 0:00:02]} Bb4 {[%emt 0:00:01]} 5. Nge2 {[%emt 0:00:07]} d5 {[%emt 0:00:02]} 6. exd5 {[%emt 0:00:01]} Nxd5 {[%emt 0:00:00]} 7. O-O {[%emt 0:00:01]} Be6 {[%emt 0:00:02]} 8. Bxd5 {[%emt 0:00:25]} Bxd5 {[%emt 0:00:01]} 9. f4 {[%emt 0:00:00]} f6 {[%emt 0:00:11]} 10. f5 {[%emt 0:00:12]} (10. fxe5 $11 Nxe5 11. d4) 10... Bxc3 {[%emt 0:00:24]} 11. bxc3 {[%emt 0:00:03] Black is slightly better.} Qd7 {[%emt 0:00:10]} 12. Ng3 {[%emt 0:00:04]} O-O-O {[%emt 0:00:57][%cal Oh7h5]} 13. Be3 {[%emt 0:00:10]} Ne7 {[%emt 0:00:40][%cal Oh7h5]} 14. Qe2 {[%emt 0:00:33][%cal Oc3c4]} b6 {[%emt 0:01:09][%cal Oh7h5]} 15. a4 {[%emt 0:00:08]} h5 {[%emt 0:00:04]} 16. a5 {[%emt 0:00:35]} (16. h4 $17 {might work better.}) 16... h4 $19 {[%emt 0:00:09]} 17. Ne4 {[%emt 0:00:05]} Nxf5 {[%emt 0:00:07]} 18. axb6 {[%emt 0:00:02]} axb6 {[%emt 0:00:08]} (18... cxb6 19. Bf2 $15) 19. Ra7 {[%emt 0:00:06]} (19. Bxb6 $142 cxb6 20. Rfb1) 19... Nxe3 $1 {[%emt 0:00:28]} 20. Qxe3 {[%emt 0:00:00]} h3 {[%emt 0:00:14] Hoping for ...Kb8.} 21. g3 {[%emt 0:01:00]} Bc6 {[%emt 0:00:15]} 22. c4 {[%emt 0:01:47]} Qd4 {[%emt 0:01:24]} ({Black should try} 22... f5 $19 23. Ng5 Kb8) 23. Qxd4 $17 {[%emt 0:00:01]} Rxd4 {[%emt 0:00:00]} 24. Nf2 {[%emt 0:00:00]} Rdd8 {[%emt 0:00:13]} 25. Re1 {[%emt 0:00:05]} Kd7 {[%emt 0:00:30]} 26. Kf1 {[%emt 0:00:07]} Ra8 {[%emt 0:00:17]} 27. Rxa8 {[%emt 0:00:01]} Rxa8 {[%emt 0:00:12][%mdl 4096] Endgame. KRB-KRN} 28. Ke2 {[%emt 0:00:00]} Bg2 {[%emt 0:00:09] Black is more active.} 29. Kd2 {[%emt 0:00:02]} Ke6 {[%emt 0:00:07]} 30. g4 {[%emt 0:00:05]} g6 {[%emt 0:00:14]} 31. Re3 {[%emt 0:00:00]} Rh8 {[%emt 0:00:06]} 32. d4 {[%emt 0:00:03]} (32. Rg3 $17) 32... Rd8 $1 $19 {[%emt 0:00:14]} 33. d5+ {[%emt 0:00:00]} Kd6 $1 {[%emt 0:00:11]} 34. g5 {[%emt 0:00:14]} f5 {[%emt 0:00:10] ...e4 is the strong threat.} (34... fxg5 35. Nxh3 Bxh3 36. Rxh3 $17) 35. Nd3 {[%emt 0:00:00]} Re8 {[%emt 0:00:35]} 36. Nf4 {[%emt 0:00:01]} (36. Ke1 $17 {is a better defense.}) 36... Be4 {[%emt 0:00:04]} 37. Ne2 {[%emt 0:00:46]} Bg2 {[%emt 0:00:11]} 38. Nf4 {[%emt 0:00:02] [#]} Rg8 $1 {[%emt 0:00:02]} 39. Nd3 {[%emt 0:00:05] [#]} e4 {[%emt 0:00:04]} 40. Nf4 {[%emt 0:00:02][%cal Oe3a3]} Ke5 {[%emt 0:00:03]} 41. Ne6 {[%emt 0:00:01]} (41. Nd3+ Kd4 42. Nf4) 41... f4 {[%emt 0:00:11]} 42. Rb3 {[%emt 0:00:01]} Bf1 {[%emt 0:00:10]} 43. Nxc7 {[%emt 0:00:03]} e3+ {[%emt 0:00:06]} 44. Ke1 {[%emt 0:00:01]} Bxc4 {[%emt 0:00:02]} 45. Rb4 {[%emt 0:00:03]} b5 {[%emt 0:00:26]} ({Weaker is} 45... Bxd5 46. Rb5 Ke4 (46... Rd8 47. c4 $11) 47. Rb4+ Ke5 48. Rb5 $11) 46. Nxb5 {[%emt 0:00:01]} Bxd5 {[%emt 0:00:10]} (46... Ra8 $142 47. Rxc4 f3 48. Nc3 Ra1+ 49. Nd1 e2 (49... Kxd5 $2 50. Rc8 $19) 50. Kd2 exd1=Q+ (50... exd1=R+ $2 51. Ke3 $19) 51. Kc3 Kxd5 (51... f2 {leads to mate.} 52. Kb4 Rb1+ 53. Ka3 f1=Q 54. Rb4 Qa6+ 55. Ra4 Qc1+ 56. Ka2 Qxa4#) 52. Kb4 Rb1+ 53. Ka3 Kxc4 54. Ka2 Qxc2+ 55. Ka3 Qb3#) 47. Nc3 {[%emt 0:00:01]} Bc6 {[%emt 0:00:06] And now ...Rd8 would win.} 48. Rc4 {[%emt 0:00:02]} Bf3 {[%emt 0:00:04]} 49. Rc7 {[%emt 0:00:07]} Ra8 {[%emt 0:00:04] Weighted Error Value: White=0.70/Black=0.38.  Mistake:       	White=6     	Black=1      Inaccurate:     	White=3     	Black=1      OK:         	White=11    	Black=17     Best:        	White=3     	Black=3} 0-1